[Event "Titled Tuesday Blitz July 26 Late 2022"]
[White "Golubev, Mikhail"]
[Black "Matinian, Nikita"]
[WhiteFideId "14100983"]
[BlackFideId "24129100"]
[WhiteElo "2374"]
[BlackElo "2422"]
[Result "0-1"]
[Round "10"]
[TimeControl "180+1"]
[Date "2022.07.26"]
[WhiteClock "0:00:16"]
[BlackClock "0:01:10"]

1. e4 {[%clk 0:03:00]}  e5 {[%clk 0:02:58]} 2. Nf3 {[%clk 0:03:00]}  Nc6 {[%clk 0:02:58]} 3. Bc4 {[%clk 0:03:00]}  Nf6 {[%clk 0:02:58]} 4. Ng5 {[%clk 0:03:00]}  d5 {[%clk 0:02:58]} 5. exd5 {[%clk 0:03:00]}  Na5 {[%clk 0:02:59]} 6. Bb5+ {[%clk 0:03:00]}  c6 {[%clk 0:02:59]} 7. dxc6 {[%clk 0:03:00]}  bxc6 {[%clk 0:03:00]} 8. Bd3 {[%clk 0:03:01]}  Nd5 {[%clk 0:02:53]} 9. h4 {[%clk 0:02:58]}  g6 {[%clk 0:02:42]} 10. Nc3 {[%clk 0:02:52]}  Nf4 {[%clk 0:02:36]} 11. Bf1 {[%clk 0:02:49]}  Be7 {[%clk 0:02:32]} 12. g3 {[%clk 0:02:43]}  Nd5 {[%clk 0:02:30]} 13. Bg2 {[%clk 0:02:40]}  h6 {[%clk 0:02:23]} 14. Nf3 {[%clk 0:02:36]}  Bg4 {[%clk 0:02:15]} 15. Qe2 {[%clk 0:02:26]}  f6 {[%clk 0:02:11]} 16. d3 {[%clk 0:02:12]}  Qd7 {[%clk 0:02:05]} 17. Bd2 {[%clk 0:02:09]}  Nb7 {[%clk 0:02:05]} 18. O-O-O {[%clk 0:02:05]}  Rb8 {[%clk 0:02:04]} 19. Qe4 {[%clk 0:01:52]}  Bf5 {[%clk 0:02:02]} 20. Qa4 {[%clk 0:01:44]}  Nc5 {[%clk 0:01:59]} 21. Qa5 {[%clk 0:01:33]}  Nxc3 {[%clk 0:01:51]} 22. Qxc3 {[%clk 0:01:02]}  Na4 {[%clk 0:01:50]} 23. Qa5 {[%clk 0:01:01]}  Nxb2 {[%clk 0:01:46]} 24. Nxe5 {[%clk 0:00:45]}  fxe5 {[%clk 0:01:31]} 25. Qxe5 {[%clk 0:00:45]}  O-O {[%clk 0:01:23]} 26. Bc3 {[%clk 0:00:19]}  Bf6 {[%clk 0:01:23]} 27. Bxb2 {[%clk 0:00:19]}  Bxe5 {[%clk 0:01:19]} 28. Bxe5 {[%clk 0:00:20]}  Rb5 {[%clk 0:01:18]} 29. Rhe1 {[%clk 0:00:18]}  Rxe5 {[%clk 0:01:17]} 30. Rxe5 {[%clk 0:00:18]}  Qd4 {[%clk 0:01:16]} 31. Rde1 {[%clk 0:00:16]}  Qxf2 {[%clk 0:01:10]} 0-1


[Site "https://www.chess.com"]

[Event "Titled Tuesday Blitz July 26 Late 2022"]
[White "Gracia Alvarez, Gerardo Antonio"]
[Black "Fieberg, Samuel"]
[WhiteFideId "5109124"]
[BlackFideId "12901717"]
[WhiteElo "2139"]
[BlackElo "2420"]
[Result "0-1"]
[Round "10"]
[TimeControl "180+1"]
[Date "2022.07.27"]
[WhiteClock "0:00:19"]
[BlackClock "0:00:58"]

1. e4 {[%clk 0:03:00]}  e5 {[%clk 0:03:00]} 2. Nc3 {[%clk 0:02:59]}  Nf6 {[%clk 0:02:59]} 3. Bc4 {[%clk 0:03:00]}  Nc6 {[%clk 0:02:59]} 4. d3 {[%clk 0:03:00]}  Na5 {[%clk 0:03:00]} 5. Bb3 {[%clk 0:02:59]}  Nxb3 {[%clk 0:03:01]} 6. axb3 {[%clk 0:02:59]}  d5 {[%clk 0:03:01]} 7. exd5 {[%clk 0:02:55]}  Nxd5 {[%clk 0:02:58]} 8. Nge2 {[%clk 0:02:56]}  Bc5 {[%clk 0:02:48]} 9. O-O {[%clk 0:02:54]}  O-O {[%clk 0:02:46]} 10. Ne4 {[%clk 0:02:38]}  Be7 {[%clk 0:02:44]} 11. f4 {[%clk 0:02:24]}  f5 {[%clk 0:02:44]} 12. N4c3 {[%clk 0:02:24]}  Bc5+ {[%clk 0:02:42]} 13. Kh1 {[%clk 0:02:24]}  Nxc3 {[%clk 0:02:25]} 14. bxc3 {[%clk 0:02:23]}  e4 {[%clk 0:02:22]} 15. dxe4 {[%clk 0:02:12]}  fxe4 {[%clk 0:02:18]} 16. Qxd8 {[%clk 0:02:03]}  Rxd8 {[%clk 0:02:19]} 17. Ng3 {[%clk 0:01:58]}  Re8 {[%clk 0:02:14]} 18. Re1 {[%clk 0:01:45]}  e3 {[%clk 0:01:58]} 19. h3 {[%clk 0:01:20]}  Bd7 {[%clk 0:01:38]} 20. Kh2 {[%clk 0:01:18]}  Bc6 {[%clk 0:01:32]} 21. b4 {[%clk 0:01:07]}  Bb6 {[%clk 0:01:30]} 22. c4 {[%clk 0:01:02]}  Bd4 {[%clk 0:01:28]} 23. Ra3 {[%clk 0:01:02]}  a5 {[%clk 0:01:19]} 24. b5 {[%clk 0:00:52]}  Be4 {[%clk 0:01:10]} 25. Re2 {[%clk 0:00:39]}  Bc5 {[%clk 0:01:06]} 26. Ra2 {[%clk 0:00:37]}  Bg6 {[%clk 0:01:00]} 27. Nf1 {[%clk 0:00:29]}  Bf7 {[%clk 0:00:59]} 28. Ra4 {[%clk 0:00:25]}  Re4 {[%clk 0:01:00]} 29. Ng3 {[%clk 0:00:19]}  Rxc4 {[%clk 0:00:58]} 0-1


[Site "https://www.chess.com"]

[Event "Titled Tuesday Blitz July 26 Late 2022"]
[White "Hjartarson, Johann"]
[Black "Ansh M Shah"]
[WhiteFideId "2300044"]
[BlackFideId "25033379"]
[WhiteElo "2458"]
[BlackElo "1819"]
[Result "1-0"]
[Round "10"]
[TimeControl "180+1"]
[Date "2022.07.26"]
[WhiteClock "0:01:06"]
[BlackClock "0:00:57"]

1. Nf3 {[%clk 0:03:00]}  Nf6 {[%clk 0:02:56]} 2. g3 {[%clk 0:03:01]}  g6 {[%clk 0:02:56]} 3. b4 {[%clk 0:03:00]}  a5 {[%clk 0:02:53]} 4. b5 {[%clk 0:02:59]}  Bg7 {[%clk 0:02:53]} 5. Bb2 {[%clk 0:02:59]}  c6 {[%clk 0:02:53]} 6. a4 {[%clk 0:02:57]}  d5 {[%clk 0:02:51]} 7. Bg2 {[%clk 0:02:56]}  O-O {[%clk 0:02:52]} 8. O-O {[%clk 0:02:54]}  Bd7 {[%clk 0:02:46]} 9. Na3 {[%clk 0:02:54]}  Re8 {[%clk 0:02:43]} 10. d3 {[%clk 0:02:48]}  Be6 {[%clk 0:02:21]} 11. c4 {[%clk 0:02:44]}  Nbd7 {[%clk 0:02:20]} 12. Nd4 {[%clk 0:02:30]}  Nf8 {[%clk 0:01:48]} 13. bxc6 {[%clk 0:02:22]}  bxc6 {[%clk 0:01:49]} 14. Nxc6 {[%clk 0:02:11]}  Qb6 {[%clk 0:01:49]} 15. Bxf6 {[%clk 0:02:09]}  Bxf6 {[%clk 0:01:47]} 16. cxd5 {[%clk 0:02:09]}  Bxa1 {[%clk 0:01:38]} 17. dxe6 {[%clk 0:02:07]}  Bf6 {[%clk 0:01:29]} 18. Nc4 {[%clk 0:01:59]}  Qc5 {[%clk 0:01:25]} 19. exf7+ {[%clk 0:01:58]}  Kg7 {[%clk 0:01:23]} 20. fxe8=Q {[%clk 0:01:55]}  Rxe8 {[%clk 0:01:23]} 21. Qb3 {[%clk 0:01:45]}  Rc8 {[%clk 0:01:18]} 22. Qb5 {[%clk 0:01:43]}  Ne6 {[%clk 0:01:12]} 23. Qxc5 {[%clk 0:01:40]}  Nxc5 {[%clk 0:01:13]} 24. N4xa5 {[%clk 0:01:39]}  Nxa4 {[%clk 0:01:14]} 25. Rc1 {[%clk 0:01:37]}  Nc3 {[%clk 0:01:13]} 26. Bf3 {[%clk 0:01:35]}  Na2 {[%clk 0:01:13]} 27. Rc4 {[%clk 0:01:34]}  Nc3 {[%clk 0:01:06]} 28. Kg2 {[%clk 0:01:33]}  Nb5 {[%clk 0:01:05]} 29. e3 {[%clk 0:01:30]}  Nd6 {[%clk 0:01:05]} 30. Rc2 {[%clk 0:01:28]}  Ra8 {[%clk 0:01:02]} 31. d4 {[%clk 0:01:28]}  Ra6 {[%clk 0:01:01]} 32. e4 {[%clk 0:01:27]}  e5 {[%clk 0:00:58]} 33. dxe5 {[%clk 0:01:26]}  Bxe5 {[%clk 0:00:58]} 34. Nxe5 {[%clk 0:01:23]}  Rxa5 {[%clk 0:00:58]} 35. Rc7+ {[%clk 0:01:22]}  Kf6 {[%clk 0:00:59]} 36. Nc6 {[%clk 0:01:19]}  Rc5 {[%clk 0:00:58]} 37. e5+ {[%clk 0:01:18]}  Rxe5 {[%clk 0:00:57]} 38. Nxe5 {[%clk 0:01:18]}  Kxe5 {[%clk 0:00:58]} 39. Rxh7 {[%clk 0:01:17]}  Kf6 {[%clk 0:00:56]} 40. h4 {[%clk 0:01:16]}  Nf5 {[%clk 0:00:57]} 41. Bd1 {[%clk 0:01:14]}  g5 {[%clk 0:00:56]} 42. hxg5+ {[%clk 0:01:13]}  Kxg5 {[%clk 0:00:57]} 43. Rh5+ {[%clk 0:01:12]}  Kg6 {[%clk 0:00:57]} 44. Rxf5 {[%clk 0:01:12]}  Kxf5 {[%clk 0:00:58]} 45. f4 {[%clk 0:01:12]}  Kg6 {[%clk 0:00:58]} 46. Kf3 {[%clk 0:01:12]}  Kf6 {[%clk 0:00:59]} 47. g4 {[%clk 0:01:12]}  Kg6 {[%clk 0:00:59]} 48. g5 {[%clk 0:01:12]}  Kf5 {[%clk 0:00:59]} 49. Bc2+ {[%clk 0:01:11]}  Ke6 {[%clk 0:01:00]} 50. Ke4 {[%clk 0:01:12]}  Kf7 {[%clk 0:01:00]} 51. f5 {[%clk 0:01:12]}  Kg7 {[%clk 0:01:01]} 52. Ke5 {[%clk 0:01:11]}  Kf7 {[%clk 0:01:01]} 53. Bb3+ {[%clk 0:01:11]}  Kg7 {[%clk 0:01:02]} 54. Ke6 {[%clk 0:01:10]}  Kh8 {[%clk 0:01:01]} 55. Ke7 {[%clk 0:01:10]}  Kg7 {[%clk 0:01:00]} 56. Bc2 {[%clk 0:01:07]}  Kg8 {[%clk 0:01:00]} 57. f6 {[%clk 0:01:06]}  Kh8 {[%clk 0:00:58]} 58. g6 {[%clk 0:01:06]}  Kg8 {[%clk 0:00:58]} 59. f7+ {[%clk 0:01:06]}  Kg7 {[%clk 0:00:57]} 60. f8=Q# {[%clk 0:01:06]} 1-0


[Site "https://www.chess.com"]

[Event "Titled Tuesday Blitz July 26 Late 2022"]
[White "Holt, Conrad"]
[Black "Pinheiro, Iung Alicio de O."]
[WhiteFideId "2034387"]
[BlackFideId "2104350"]
[WhiteElo "2586"]
[BlackElo "2283"]
[Result "1-0"]
[Round "10"]
[TimeControl "180+1"]
[Date "2022.07.26"]
[WhiteClock "0:01:50"]
[BlackClock "0:00:16"]

1. d4 {[%clk 0:03:00]}  d5 {[%clk 0:02:57]} 2. c4 {[%clk 0:03:00]}  c6 {[%clk 0:02:57]} 3. Nc3 {[%clk 0:03:00]}  Nf6 {[%clk 0:02:57]} 4. e3 {[%clk 0:03:01]}  g6 {[%clk 0:02:57]} 5. b3 {[%clk 0:02:56]}  Bg7 {[%clk 0:02:56]} 6. Bb2 {[%clk 0:02:57]}  O-O {[%clk 0:02:56]} 7. Nf3 {[%clk 0:02:56]}  Bg4 {[%clk 0:02:54]} 8. Be2 {[%clk 0:02:57]}  Nbd7 {[%clk 0:02:50]} 9. O-O {[%clk 0:02:56]}  Re8 {[%clk 0:02:50]} 10. h3 {[%clk 0:02:56]}  Bxf3 {[%clk 0:02:50]} 11. Bxf3 {[%clk 0:02:56]}  e6 {[%clk 0:02:51]} 12. Qc2 {[%clk 0:02:49]}  a6 {[%clk 0:02:45]} 13. Rad1 {[%clk 0:02:48]}  b5 {[%clk 0:02:43]} 14. Ne2 {[%clk 0:02:43]}  bxc4 {[%clk 0:02:34]} 15. bxc4 {[%clk 0:02:43]}  Nb6 {[%clk 0:02:35]} 16. c5 {[%clk 0:02:44]}  Nc4 {[%clk 0:02:34]} 17. Bc3 {[%clk 0:02:42]}  Qc7 {[%clk 0:02:21]} 18. Ng3 {[%clk 0:02:40]}  e5 {[%clk 0:02:10]} 19. Be2 {[%clk 0:02:39]}  exd4 {[%clk 0:02:05]} 20. exd4 {[%clk 0:02:38]}  Ne3 {[%clk 0:01:57]} 21. fxe3 {[%clk 0:02:36]}  Qxg3 {[%clk 0:01:57]} 22. Rf3 {[%clk 0:02:35]}  Qg5 {[%clk 0:01:45]} 23. Be1 {[%clk 0:02:25]}  Rxe3 {[%clk 0:01:30]} 24. Qc1 {[%clk 0:02:24]}  Rae8 {[%clk 0:01:08]} 25. Bd2 {[%clk 0:02:24]}  Bh6 {[%clk 0:00:55]} 26. Bxa6 {[%clk 0:02:17]}  Nh5 {[%clk 0:00:39]} 27. Bxe3 {[%clk 0:02:14]}  Rxe3 {[%clk 0:00:36]} 28. Qxe3 {[%clk 0:02:14]}  Qxe3+ {[%clk 0:00:33]} 29. Rxe3 {[%clk 0:02:15]}  Bxe3+ {[%clk 0:00:34]} 30. Kf1 {[%clk 0:02:15]}  Ng3+ {[%clk 0:00:31]} 31. Ke1 {[%clk 0:02:15]}  Nf5 {[%clk 0:00:32]} 32. Bb7 {[%clk 0:02:07]}  Bxd4 {[%clk 0:00:20]} 33. Bxc6 {[%clk 0:02:03]}  Ne3 {[%clk 0:00:20]} 34. Rxd4 {[%clk 0:01:59]}  Nc2+ {[%clk 0:00:20]} 35. Kd2 {[%clk 0:01:59]}  Nxd4 {[%clk 0:00:21]} 36. Bxd5 {[%clk 0:01:56]}  Kf8 {[%clk 0:00:21]} 37. a4 {[%clk 0:01:54]}  Ke7 {[%clk 0:00:21]} 38. a5 {[%clk 0:01:54]}  Kd7 {[%clk 0:00:20]} 39. a6 {[%clk 0:01:53]}  Nb5 {[%clk 0:00:20]} 40. Bxf7 {[%clk 0:01:51]}  Kc6 {[%clk 0:00:20]} 41. Be8+ {[%clk 0:01:50]}  Kxc5 {[%clk 0:00:16]} 42. Bxb5 {[%clk 0:01:50]} 1-0


[Site "https://www.chess.com"]

[Event "Titled Tuesday Blitz July 26 Late 2022"]
[White "Jacobson, Brandon"]
[Black "Lashkin, Jegor"]
[WhiteFideId "30901561"]
[BlackFideId "13907808"]
[WhiteElo "2362"]
[BlackElo "2368"]
[Result "1-0"]
[Round "10"]
[TimeControl "180+1"]
[Date "2022.07.26"]
[WhiteClock "0:00:07"]
[BlackClock "0:00:01"]

1. Nf3 {[%clk 0:03:00]}  d5 {[%clk 0:03:00]} 2. e3 {[%clk 0:03:00]}  Nf6 {[%clk 0:03:00]} 3. c4 {[%clk 0:03:00]}  e6 {[%clk 0:03:00]} 4. Nc3 {[%clk 0:03:01]}  Be7 {[%clk 0:02:58]} 5. b3 {[%clk 0:03:01]}  O-O {[%clk 0:02:58]} 6. Bb2 {[%clk 0:03:02]}  b6 {[%clk 0:02:55]} 7. cxd5 {[%clk 0:03:02]}  exd5 {[%clk 0:02:55]} 8. d4 {[%clk 0:03:03]}  Bb7 {[%clk 0:02:55]} 9. g3 {[%clk 0:03:03]}  Nbd7 {[%clk 0:02:50]} 10. Bg2 {[%clk 0:03:04]}  Bd6 {[%clk 0:02:51]} 11. O-O {[%clk 0:03:03]}  Re8 {[%clk 0:02:50]} 12. Nb5 {[%clk 0:03:01]}  Bf8 {[%clk 0:02:49]} 13. Rc1 {[%clk 0:03:02]}  c6 {[%clk 0:02:43]} 14. Nc3 {[%clk 0:03:02]}  Bd6 {[%clk 0:02:43]} 15. Ne2 {[%clk 0:03:01]}  Qe7 {[%clk 0:02:34]} 16. Nf4 {[%clk 0:03:01]}  Ne4 {[%clk 0:02:28]} 17. Re1 {[%clk 0:03:01]}  a5 {[%clk 0:02:26]} 18. a4 {[%clk 0:03:01]}  Bb4 {[%clk 0:02:24]} 19. Re2 {[%clk 0:03:01]}  Rac8 {[%clk 0:02:19]} 20. Rec2 {[%clk 0:03:01]}  Bd6 {[%clk 0:02:13]} 21. Nd3 {[%clk 0:02:52]}  Nb8 {[%clk 0:01:55]} 22. Nd2 {[%clk 0:02:44]}  Nxd2 {[%clk 0:01:47]} 23. Qxd2 {[%clk 0:02:45]}  Na6 {[%clk 0:01:47]} 24. Bc3 {[%clk 0:02:43]}  Rc7 {[%clk 0:01:43]} 25. Re1 {[%clk 0:02:42]}  Qd8 {[%clk 0:01:39]} 26. b4 {[%clk 0:02:35]}  axb4 {[%clk 0:01:38]} 27. Nxb4 {[%clk 0:02:36]}  Nxb4 {[%clk 0:01:35]} 28. Bxb4 {[%clk 0:02:37]}  Ba6 {[%clk 0:01:24]} 29. Rb1 {[%clk 0:02:28]}  Bxb4 {[%clk 0:00:58]} 30. Qxb4 {[%clk 0:02:24]}  Bd3 {[%clk 0:00:57]} 31. Rbc1 {[%clk 0:02:18]}  Bxc2 {[%clk 0:00:57]} 32. Rxc2 {[%clk 0:02:19]}  Rc8 {[%clk 0:00:52]} 33. Bh3 {[%clk 0:02:19]}  c5 {[%clk 0:00:48]} 34. Qb5 {[%clk 0:02:14]}  Ra8 {[%clk 0:00:45]} 35. dxc5 {[%clk 0:02:12]}  bxc5 {[%clk 0:00:44]} 36. Rxc5 {[%clk 0:02:13]}  Rb8 {[%clk 0:00:38]} 37. Qd3 {[%clk 0:02:06]}  Qf6 {[%clk 0:00:35]} 38. Rxd5 {[%clk 0:02:00]}  Qa1+ {[%clk 0:00:35]} 39. Kg2 {[%clk 0:01:58]}  Rb1 {[%clk 0:00:26]} 40. Bd7 {[%clk 0:01:32]}  Rg1+ {[%clk 0:00:26]} 41. Kh3 {[%clk 0:01:33]}  Rf8 {[%clk 0:00:22]} 42. Bb5 {[%clk 0:01:30]}  g6 {[%clk 0:00:18]} 43. Rd7 {[%clk 0:01:30]}  Qa2 {[%clk 0:00:16]} 44. Qe2 {[%clk 0:01:15]}  Qe6+ {[%clk 0:00:15]} 45. Qg4 {[%clk 0:01:13]}  Qe5 {[%clk 0:00:10]} 46. Bc4 {[%clk 0:01:05]}  Qf6 {[%clk 0:00:08]} 47. Qf4 {[%clk 0:00:50]}  Qxf4 {[%clk 0:00:07]} 48. gxf4 {[%clk 0:00:50]}  Ra1 {[%clk 0:00:08]} 49. Bb3 {[%clk 0:00:47]}  Ra3 {[%clk 0:00:08]} 50. Rb7 {[%clk 0:00:48]}  Kg7 {[%clk 0:00:07]} 51. Kg4 {[%clk 0:00:47]}  Kh6 {[%clk 0:00:07]} 52. Bxf7 {[%clk 0:00:41]}  Rxa4 {[%clk 0:00:07]} 53. Bd5 {[%clk 0:00:36]}  Ra5 {[%clk 0:00:06]} 54. Rd7 {[%clk 0:00:33]}  Rc5 {[%clk 0:00:06]} 55. h4 {[%clk 0:00:28]}  Rc2 {[%clk 0:00:06]} 56. Kg3 {[%clk 0:00:28]}  Rcc8 {[%clk 0:00:06]} 57. Ra7 {[%clk 0:00:28]}  Rcd8 {[%clk 0:00:06]} 58. e4 {[%clk 0:00:28]}  Rde8 {[%clk 0:00:06]} 59. f3 {[%clk 0:00:27]}  Rc8 {[%clk 0:00:06]} 60. Be6 {[%clk 0:00:24]}  Rc3 {[%clk 0:00:06]} 61. f5 {[%clk 0:00:22]}  Rc6 {[%clk 0:00:04]} 62. Re7 {[%clk 0:00:20]}  Rb6 {[%clk 0:00:04]} 63. Kg4 {[%clk 0:00:18]}  Rb1 {[%clk 0:00:03]} 64. Kf4 {[%clk 0:00:15]}  Rb5 {[%clk 0:00:03]} 65. Rc7 {[%clk 0:00:11]}  Ra5 {[%clk 0:00:03]} 66. Kg4 {[%clk 0:00:08]}  Ra3 {[%clk 0:00:03]} 67. e5 {[%clk 0:00:06]}  Ra4+ {[%clk 0:00:03]} 68. f4 {[%clk 0:00:06]}  gxf5+ {[%clk 0:00:01]} 69. Bxf5 {[%clk 0:00:07]} 1-0


[Site "https://www.chess.com"]

[Event "Titled Tuesday Blitz July 26 Late 2022"]
[White "Jin, Ashton"]
[Black "Bartholomew, John"]
[WhiteFideId "30931908"]
[BlackFideId "2019353"]
[WhiteElo "2514"]
[BlackElo "2749"]
[Result "0-1"]
[Round "10"]
[TimeControl "180+1"]
[Date "2022.07.26"]
[WhiteClock "0:00:22"]
[BlackClock "0:00:27"]

1. e4 {[%clk 0:03:00]}  d5 {[%clk 0:02:58]} 2. exd5 {[%clk 0:03:00]}  Qxd5 {[%clk 0:02:59]} 3. Nc3 {[%clk 0:02:59]}  Qa5 {[%clk 0:02:59]} 4. d4 {[%clk 0:02:59]}  Nf6 {[%clk 0:02:59]} 5. Nf3 {[%clk 0:02:56]}  Bf5 {[%clk 0:02:58]} 6. Bc4 {[%clk 0:02:55]}  e6 {[%clk 0:02:58]} 7. Ne5 {[%clk 0:02:54]}  Nbd7 {[%clk 0:02:52]} 8. Nxd7 {[%clk 0:02:44]}  Nxd7 {[%clk 0:02:51]} 9. O-O {[%clk 0:02:43]}  c6 {[%clk 0:02:50]} 10. Re1 {[%clk 0:02:40]}  O-O-O {[%clk 0:02:43]} 11. Qf3 {[%clk 0:02:18]}  Nf6 {[%clk 0:02:26]} 12. Be3 {[%clk 0:01:33]}  Bd6 {[%clk 0:02:07]} 13. h3 {[%clk 0:01:29]}  h5 {[%clk 0:02:06]} 14. Bb3 {[%clk 0:01:20]}  Rhg8 {[%clk 0:01:46]} 15. Bg5 {[%clk 0:01:07]}  Rde8 {[%clk 0:00:45]} 16. Bxf6 {[%clk 0:00:55]}  gxf6 {[%clk 0:00:45]} 17. Ne4 {[%clk 0:00:55]}  Bxe4 {[%clk 0:00:39]} 18. Rxe4 {[%clk 0:00:53]}  f5 {[%clk 0:00:35]} 19. Re2 {[%clk 0:00:50]}  Rg6 {[%clk 0:00:32]} 20. Kh1 {[%clk 0:00:44]}  Reg8 {[%clk 0:00:32]} 21. g3 {[%clk 0:00:38]}  h4 {[%clk 0:00:32]} 22. gxh4 {[%clk 0:00:31]}  Bb8 {[%clk 0:00:30]} 23. h5 {[%clk 0:00:22]}  Rg5 {[%clk 0:00:28]} 24. c4 {[%clk 0:00:22]}  Qc7 {[%clk 0:00:27]} 0-1


[Site "https://www.chess.com"]

[Event "Titled Tuesday Blitz July 26 Late 2022"]
[White "Melikhov, Evgeny V."]
[Black "Kovacevic, Radmila"]
[WhiteFideId "4122046"]
[BlackFideId "933171"]
[WhiteElo "1995"]
[BlackElo "2157"]
[Result "1-0"]
[Round "10"]
[TimeControl "180+1"]
[Date "2022.07.27"]
[WhiteClock "0:00:11"]
[BlackClock "0:00:24"]

1. e4 {[%clk 0:03:00]}  e5 {[%clk 0:02:59]} 2. Nf3 {[%clk 0:03:00]}  d5 {[%clk 0:03:00]} 3. Nxe5 {[%clk 0:02:47]}  Bd6 {[%clk 0:02:58]} 4. d4 {[%clk 0:02:41]}  dxe4 {[%clk 0:02:58]} 5. Nc3 {[%clk 0:02:23]}  Bxe5 {[%clk 0:02:57]} 6. dxe5 {[%clk 0:02:23]}  Qxd1+ {[%clk 0:02:58]} 7. Kxd1 {[%clk 0:02:20]}  Bg4+ {[%clk 0:02:54]} 8. Be2 {[%clk 0:02:19]}  Bf5 {[%clk 0:02:51]} 9. f4 {[%clk 0:02:10]}  Nc6 {[%clk 0:02:45]} 10. g4 {[%clk 0:02:04]}  O-O-O+ {[%clk 0:02:44]} 11. Ke1 {[%clk 0:01:54]}  Be6 {[%clk 0:02:43]} 12. Nxe4 {[%clk 0:01:48]}  Bd5 {[%clk 0:02:43]} 13. Bd3 {[%clk 0:01:45]}  f6 {[%clk 0:02:30]} 14. Rg1 {[%clk 0:01:25]}  fxe5 {[%clk 0:02:29]} 15. f5 {[%clk 0:01:25]}  Nf6 {[%clk 0:02:16]} 16. Nxf6 {[%clk 0:01:17]}  gxf6 {[%clk 0:02:16]} 17. Bh6 {[%clk 0:01:03]}  e4 {[%clk 0:02:09]} 18. Be2 {[%clk 0:00:52]}  Rhg8 {[%clk 0:02:02]} 19. Kf2 {[%clk 0:00:43]}  Nd4 {[%clk 0:01:52]} 20. c3 {[%clk 0:00:39]}  Nxe2 {[%clk 0:01:45]} 21. Kxe2 {[%clk 0:00:39]}  Bc4+ {[%clk 0:01:45]} 22. Kf2 {[%clk 0:00:39]}  Rd3 {[%clk 0:01:41]} 23. Rg3 {[%clk 0:00:30]}  Rxg3 {[%clk 0:01:34]} 24. Kxg3 {[%clk 0:00:30]}  Be2 {[%clk 0:01:34]} 25. h3 {[%clk 0:00:29]}  Kd7 {[%clk 0:01:24]} 26. Re1 {[%clk 0:00:28]}  Bd3 {[%clk 0:01:24]} 27. Kf4 {[%clk 0:00:27]}  Ke7 {[%clk 0:01:10]} 28. h4 {[%clk 0:00:27]}  Kf7 {[%clk 0:01:08]} 29. g5 {[%clk 0:00:25]}  Re8 {[%clk 0:01:03]} 30. Re3 {[%clk 0:00:24]}  Bb1 {[%clk 0:01:00]} 31. a3 {[%clk 0:00:23]}  b6 {[%clk 0:00:57]} 32. h5 {[%clk 0:00:18]}  fxg5+ {[%clk 0:00:56]} 33. Bxg5 {[%clk 0:00:18]}  c5 {[%clk 0:00:54]} 34. Rg3 {[%clk 0:00:15]}  e3 {[%clk 0:00:47]} 35. Rxe3 {[%clk 0:00:14]}  Rxe3 {[%clk 0:00:46]} 36. Kxe3 {[%clk 0:00:14]}  Bxf5 {[%clk 0:00:46]} 37. Kf4 {[%clk 0:00:12]}  Bc2 {[%clk 0:00:44]} 38. Ke5 {[%clk 0:00:12]}  b5 {[%clk 0:00:30]} 39. Kd5 {[%clk 0:00:11]}  c4 {[%clk 0:00:30]} 40. Kc5 {[%clk 0:00:10]}  Ba4 {[%clk 0:00:28]} 41. Kc6 {[%clk 0:00:09]}  b4+ {[%clk 0:00:23]} 42. Kb7 {[%clk 0:00:06]}  bxa3 {[%clk 0:00:21]} 43. bxa3 {[%clk 0:00:06]}  Ke6 {[%clk 0:00:18]} 44. Kxa7 {[%clk 0:00:06]}  Kf5 {[%clk 0:00:18]} 45. Bc1 {[%clk 0:00:05]}  Kg4 {[%clk 0:00:16]} 46. h6 {[%clk 0:00:05]}  Kf3 {[%clk 0:00:16]} 47. Kb6 {[%clk 0:00:05]}  Ke2 {[%clk 0:00:15]} 48. Ka5 {[%clk 0:00:05]}  Bb3 {[%clk 0:00:14]} 49. Kb4 {[%clk 0:00:05]}  Kd1 {[%clk 0:00:14]} 50. Bg5 {[%clk 0:00:05]}  Kc2 {[%clk 0:00:13]} 51. Bf6 {[%clk 0:00:04]}  Kd3 {[%clk 0:00:12]} 52. a4 {[%clk 0:00:04]}  Bd1 {[%clk 0:00:12]} 53. a5 {[%clk 0:00:04]}  Bf3 {[%clk 0:00:12]} 54. Kc5 {[%clk 0:00:05]}  Ba8 {[%clk 0:00:10]} 55. Kb6 {[%clk 0:00:05]}  Ke4 {[%clk 0:00:11]} 56. a6 {[%clk 0:00:05]}  Kf5 {[%clk 0:00:10]} 57. Bg7 {[%clk 0:00:05]}  Kg6 {[%clk 0:00:11]} 58. Ka7 {[%clk 0:00:05]}  Bd5 {[%clk 0:00:11]} 59. Kb8 {[%clk 0:00:05]}  Kf5 {[%clk 0:00:11]} 60. a7 {[%clk 0:00:06]}  Ke4 {[%clk 0:00:11]} 61. a8=Q {[%clk 0:00:06]}  Bxa8 {[%clk 0:00:11]} 62. Kxa8 {[%clk 0:00:07]}  Kd5 {[%clk 0:00:12]} 63. Kb7 {[%clk 0:00:07]}  Kc5 {[%clk 0:00:13]} 64. Kc7 {[%clk 0:00:07]}  Kb5 {[%clk 0:00:13]} 65. Kd6 {[%clk 0:00:07]}  Kb6 {[%clk 0:00:13]} 66. Kd5 {[%clk 0:00:08]}  Kc7 {[%clk 0:00:13]} 67. Kxc4 {[%clk 0:00:07]}  Kc6 {[%clk 0:00:14]} 68. Kd4 {[%clk 0:00:08]}  Kc7 {[%clk 0:00:15]} 69. c4 {[%clk 0:00:08]}  Kd7 {[%clk 0:00:16]} 70. c5 {[%clk 0:00:08]}  Kc6 {[%clk 0:00:17]} 71. Kc4 {[%clk 0:00:09]}  Kc7 {[%clk 0:00:18]} 72. Kd5 {[%clk 0:00:09]}  Kb7 {[%clk 0:00:18]} 73. c6+ {[%clk 0:00:09]}  Kc8 {[%clk 0:00:18]} 74. Kc5 {[%clk 0:00:10]}  Kd8 {[%clk 0:00:19]} 75. Be5 {[%clk 0:00:10]}  Kc8 {[%clk 0:00:20]} 76. Kb6 {[%clk 0:00:10]}  Kd8 {[%clk 0:00:20]} 77. Kb7 {[%clk 0:00:10]}  Ke7 {[%clk 0:00:21]} 78. c7 {[%clk 0:00:10]}  Kf7 {[%clk 0:00:22]} 79. c8=Q {[%clk 0:00:11]}  Kg6 {[%clk 0:00:22]} 80. Qe6+ {[%clk 0:00:11]}  Kh5 {[%clk 0:00:23]} 81. Qf5+ {[%clk 0:00:11]}  Kh4 {[%clk 0:00:22]} 82. Qxh7 {[%clk 0:00:11]}  Kh5 {[%clk 0:00:23]} 83. Qg7 {[%clk 0:00:11]}  Kh4 {[%clk 0:00:23]} 84. h7 {[%clk 0:00:11]}  Kh3 {[%clk 0:00:24]} 85. h8=Q# {[%clk 0:00:11]} 1-0


[Site "https://www.chess.com"]